[Event "*** Titled Tuesday Blitz"]
[Site "Chess.com"]
[Date "2020.05.19"]
[Round "8"]
[White "TudorAnton"]
[Black "ErikBlomqvist"]
[Result "1/2-1/2"]
[WhiteElo "2465"]
[BlackElo "2303"]
[TimeControl "180+1"]
[EndTime "13:37:02 PDT"]
[Termination "Game drawn - insufficient material"]

1. d4 {[%clk 0:03:00.9]} 1... Nf6 {[%clk 0:02:59.4]} 2. Nc3 {[%clk 0:02:58.6]}
2... d5 {[%clk 0:02:59]} 3. Bg5 {[%clk 0:02:57.3]} 3... c5 {[%clk 0:02:54.7]} 4.
e3 {[%clk 0:02:55.9]} 4... Nc6 {[%clk 0:02:52]} 5. Bb5 {[%clk 0:02:53.1]} 5...
e6 {[%clk 0:02:17]} 6. Nf3 {[%clk 0:02:51.8]} 6... Bd7 {[%clk 0:02:13.3]} 7. O-O
{[%clk 0:02:50.6]} 7... Be7 {[%clk 0:01:50]} 8. dxc5 {[%clk 0:02:46.7]} 8...
Bxc5 {[%clk 0:01:40.8]} 9. e4 {[%clk 0:02:45.2]} 9... d4 {[%clk 0:01:32.9]} 10.
Ne2 {[%clk 0:02:34.2]} 10... h6 {[%clk 0:01:27.9]} 11. Bh4 {[%clk 0:02:30.4]}
11... g5 {[%clk 0:01:09.5]} 12. Bg3 {[%clk 0:02:29.4]} 12... Nxe4 {[%clk
0:01:09.7]} 13. Nexd4 {[%clk 0:02:13.9]} 13... Nxd4 {[%clk 0:01:02.3]} 14. Nxd4
{[%clk 0:02:14.8]} 14... Nxg3 {[%clk 0:00:56.7]} 15. hxg3 {[%clk 0:02:04.8]}
15... Bxb5 {[%clk 0:00:51.1]} 16. Nxb5 {[%clk 0:02:05.7]} 16... Qxd1 {[%clk
0:00:43.9]} 17. Rfxd1 {[%clk 0:02:06.6]} 17... Ke7 {[%clk 0:00:44.2]} 18. c3
{[%clk 0:02:05.6]} 18... Rhd8 {[%clk 0:00:30.9]} 19. Kf1 {[%clk 0:02:01.1]}
19... a6 {[%clk 0:00:27]} 20. Nd4 {[%clk 0:01:58.7]} 20... Bxd4 {[%clk
0:00:26.7]} 21. cxd4 {[%clk 0:01:58.6]} 21... Rd5 {[%clk 0:00:23.4]} 22. Rac1
{[%clk 0:01:58.4]} 22... Rad8 {[%clk 0:00:22.4]} 23. Rc7+ {[%clk 0:01:45.5]}
23... R8d7 {[%clk 0:00:22.9]} 24. Rxd7+ {[%clk 0:01:45.1]} 24... Kxd7 {[%clk
0:00:23.8]} 25. Ke2 {[%clk 0:01:45]} 25... Kd6 {[%clk 0:00:24.2]} 26. Ke3 {[%clk
0:01:42.8]} 26... g4 {[%clk 0:00:23.5]} 27. Rh1 {[%clk 0:01:39]} 27... h5 {[%clk
0:00:23.9]} 28. f4 {[%clk 0:01:37.7]} 28... a5 {[%clk 0:00:14.1]} 29. a4 {[%clk
0:01:31.5]} 29... b5 {[%clk 0:00:13.3]} 30. b3 {[%clk 0:01:31.8]} 30... bxa4
{[%clk 0:00:06.9]} 31. bxa4 {[%clk 0:01:32.7]} 31... Rf5 {[%clk 0:00:04.4]} 32.
Ke4 {[%clk 0:01:32.2]} 32... Rd5 {[%clk 0:00:03.7]} 33. Rb1 {[%clk 0:01:31.5]}
33... Kc6 {[%clk 0:00:02.1]} 34. Rb8 {[%clk 0:01:28.5]} 34... f5+ {[%clk
0:00:02.3]} 35. Kd3 {[%clk 0:01:27.3]} 35... Rd7 {[%clk 0:00:03.2]} 36. Rb5
{[%clk 0:01:26.4]} 36... Rd5 {[%clk 0:00:02]} 37. Rb8 {[%clk 0:01:25.4]} 37...
Rd7 {[%clk 0:00:02]} 38. Kc4 {[%clk 0:01:24.2]} 38... Rc7 {[%clk 0:00:01.8]} 39.
Rb5 {[%clk 0:01:23]} 39... Kd6+ {[%clk 0:00:02.1]} 40. Kd3 {[%clk 0:01:22.5]}
40... Rc1 {[%clk 0:00:02]} 41. Ke3 {[%clk 0:01:16.7]} 41... Rg1 {[%clk
0:00:02.9]} 42. Kf2 {[%clk 0:01:16.6]} 42... Ra1 {[%clk 0:00:03.1]} 43. Rxa5
{[%clk 0:01:16.8]} 43... Ra2+ {[%clk 0:00:04]} 44. Kg1 {[%clk 0:01:15.3]} 44...
Kc6 {[%clk 0:00:04.3]} 45. Re5 {[%clk 0:01:13]} 45... Kd6 {[%clk 0:00:04.5]} 46.
a5 {[%clk 0:01:10.7]} 46... Ra4 {[%clk 0:00:04.9]} 47. d5 {[%clk 0:01:09.9]}
47... Rxa5 {[%clk 0:00:03.7]} 48. Rxe6+ {[%clk 0:01:09.9]} 48... Kd7 {[%clk
0:00:03.8]} 49. Re5 {[%clk 0:01:10.1]} 49... Kd6 {[%clk 0:00:02.7]} 50. Rxf5
{[%clk 0:01:09.7]} 50... Rxd5 {[%clk 0:00:03.6]} 51. Rxd5+ {[%clk 0:01:09.6]}
51... Kxd5 {[%clk 0:00:04.5]} 52. Kf2 {[%clk 0:01:09]} 52... Ke4 {[%clk
0:00:05.4]} 53. Ke2 {[%clk 0:01:09.2]} 53... Kd4 {[%clk 0:00:05.1]} 54. Kd2
{[%clk 0:01:07.9]} 54... Ke4 {[%clk 0:00:05.3]} 55. Kc3 {[%clk 0:01:04]} 55...
h4 {[%clk 0:00:05.5]} 56. gxh4 {[%clk 0:01:04.1]} 56... Kxf4 {[%clk 0:00:06.4]}
57. g3+ {[%clk 0:00:37.9]} 57... Kxg3 {[%clk 0:00:06.4]} 58. h5 {[%clk
0:00:38.5]} 58... Kf2 {[%clk 0:00:07]} 59. h6 {[%clk 0:00:39.4]} 59... g3 {[%clk
0:00:07.6]} 60. h7 {[%clk 0:00:40]} 60... g2 {[%clk 0:00:08.5]} 61. h8=Q {[%clk
0:00:40.7]} 61... g1=Q {[%clk 0:00:08.4]} 62. Qd4+ {[%clk 0:00:41.3]} 62... Kg2
{[%clk 0:00:08]} 63. Qxg1+ {[%clk 0:00:42.2]} 63... Kxg1 {[%clk 0:00:08.8]}
1/2-1/2

[Event "*** Titled Tuesday Blitz"]
[Site "Chess.com"]
[Date "2020.05.19"]
[Round "8"]
[White "Arathorn2"]
[Black "DvaHrasta"]
[Result "0-1"]
[WhiteElo "2240"]
[BlackElo "2431"]
[TimeControl "180+1"]
[EndTime "13:37:03 PDT"]
[Termination "DvaHrasta won on time"]

1. d4 {[%clk 0:03:00.9]} 1... Nf6 {[%clk 0:02:59]} 2. c4 {[%clk 0:03:00.8]} 2...
e6 {[%clk 0:02:58.9]} 3. Nf3 {[%clk 0:03:00.1]} 3... b6 {[%clk 0:02:56.7]} 4. a3
{[%clk 0:02:59.7]} 4... Bb7 {[%clk 0:02:47.5]} 5. Nc3 {[%clk 0:02:59.6]} 5... d5
{[%clk 0:02:47.5]} 6. cxd5 {[%clk 0:03:00.5]} 6... exd5 {[%clk 0:02:46.9]} 7.
Qc2 {[%clk 0:03:00.1]} 7... Bd6 {[%clk 0:02:41.7]} 8. Bg5 {[%clk 0:02:59.6]}
8... h6 {[%clk 0:02:29.3]} 9. Bxf6 {[%clk 0:02:41.2]} 9... Qxf6 {[%clk 0:02:28]}
10. Nb5 {[%clk 0:02:41.7]} 10... O-O {[%clk 0:02:16.6]} 11. e3 {[%clk 0:02:28]}
11... Nd7 {[%clk 0:02:05]} 12. Bd3 {[%clk 0:02:24.7]} 12... Rfc8 {[%clk
0:01:58.6]} 13. Nxd6 {[%clk 0:02:17.9]} 13... cxd6 {[%clk 0:01:58.4]} 14. Qa4
{[%clk 0:02:03.9]} 14... Qe6 {[%clk 0:01:49.7]} 15. O-O {[%clk 0:02:02]} 15...
Nf6 {[%clk 0:01:49.5]} 16. Rac1 {[%clk 0:02:00.5]} 16... a6 {[%clk 0:01:31.5]}
17. Nd2 {[%clk 0:01:46.9]} 17... Ne4 {[%clk 0:01:27.4]} 18. Nxe4 {[%clk
0:01:39.8]} 18... dxe4 {[%clk 0:01:26.9]} 19. Bc4 {[%clk 0:01:40]} 19... d5
{[%clk 0:01:23.8]} 20. Ba2 {[%clk 0:01:34.5]} 20... g5 {[%clk 0:01:16.6]} 21.
Qb4 {[%clk 0:01:29.4]} 21... a5 {[%clk 0:01:08.5]} 22. Qd2 {[%clk 0:01:28.9]}
22... Ba6 {[%clk 0:01:05.2]} 23. Rxc8+ {[%clk 0:01:23.9]} 23... Rxc8 {[%clk
0:01:03.6]} 24. Rc1 {[%clk 0:01:24.8]} 24... Rxc1+ {[%clk 0:00:50.6]} 25. Qxc1
{[%clk 0:01:24.4]} 25... Bc4 {[%clk 0:00:47.9]} 26. b3 {[%clk 0:01:14.4]} 26...
Bd3 {[%clk 0:00:45.7]} 27. Qc7 {[%clk 0:01:07.4]} 27... Kg7 {[%clk 0:00:31.9]}
28. h3 {[%clk 0:01:06.7]} 28... b5 {[%clk 0:00:29.6]} 29. b4 {[%clk 0:01:05.1]}
29... axb4 {[%clk 0:00:25.2]} 30. axb4 {[%clk 0:01:06]} 30... Bc4 {[%clk
0:00:25]} 31. Bxc4 {[%clk 0:01:03.8]} 31... dxc4 {[%clk 0:00:21.7]} 32. Qc5
{[%clk 0:01:02.4]} 32... f6 {[%clk 0:00:18]} 33. Qxb5 {[%clk 0:00:57.9]} 33...
Qc8 {[%clk 0:00:14]} 34. Qa4 {[%clk 0:00:41.5]} 34... c3 {[%clk 0:00:14]} 35.
Qc2 {[%clk 0:00:41.6]} 35... Qc4 {[%clk 0:00:13.8]} 36. b5 {[%clk 0:00:40.8]}
36... Qd3 {[%clk 0:00:13.2]} 37. Qa4 {[%clk 0:00:12.4]} 37... c2 {[%clk
0:00:11.9]} 38. Qa7+ {[%clk 0:00:10.4]} 38... Kg6 {[%clk 0:00:11.6]} 39. Qd7
{[%clk 0:00:01.3]} 39... c1=Q+ {[%clk 0:00:07.7]} 40. Kh2 {[%clk 0:00:02.2]}
40... Qca3 {[%clk 0:00:04]} 41. g4 {[%clk 0:00:01.8]} 41... Qf8 {[%clk
0:00:02.6]} 42. Qf5+ {[%clk 0:00:01.6]} 42... Kg7 {[%clk 0:00:02.3]} 43. b6
{[%clk 0:00:02.2]} 43... Qf7 {[%clk 0:00:02.5]} 0-1

[Event "*** Titled Tuesday Blitz"]
[Site "Chess.com"]
[Date "2020.05.19"]
[Round "8"]
[White "valeriocarnicelli"]
[Black "maciek_92"]
[Result "0-1"]
[WhiteElo "2559"]
[BlackElo "2737"]
[TimeControl "180+1"]
[EndTime "13:37:04 PDT"]
[Termination "maciek_92 won by resignation"]

1. e4 {[%clk 0:02:58.3]} 1... c5 {[%clk 0:02:56.9]} 2. Nf3 {[%clk 0:02:54.4]}
2... Nc6 {[%clk 0:02:54.1]} 3. d4 {[%clk 0:02:40.6]} 3... cxd4 {[%clk 0:02:55]}
4. Nxd4 {[%clk 0:02:40.5]} 4... g6 {[%clk 0:02:52.5]} 5. Nc3 {[%clk 0:02:38.9]}
5... Bg7 {[%clk 0:02:51.3]} 6. Be3 {[%clk 0:02:19.3]} 6... Nf6 {[%clk
0:02:50.8]} 7. Nxc6 {[%clk 0:02:19.3]} 7... bxc6 {[%clk 0:02:45.7]} 8. e5 {[%clk
0:02:19.5]} 8... Ng8 {[%clk 0:02:46.3]} 9. f4 {[%clk 0:02:18.4]} 9... f6 {[%clk
0:02:45.5]} 10. Bd4 {[%clk 0:02:14.7]} 10... fxe5 {[%clk 0:02:43.5]} 11. fxe5
{[%clk 0:02:14.5]} 11... Qc7 {[%clk 0:02:35.5]} 12. Bc4 {[%clk 0:02:08.7]} 12...
Bxe5 {[%clk 0:02:26.6]} 13. O-O {[%clk 0:02:08.2]} 13... Nf6 {[%clk 0:02:22.4]}
14. Re1 {[%clk 0:01:50.9]} 14... Bxd4+ {[%clk 0:02:15.3]} 15. Qxd4 {[%clk
0:01:50.6]} 15... Qb6 {[%clk 0:02:13.3]} 16. Rad1 {[%clk 0:01:45.6]} 16... d5
{[%clk 0:02:08.1]} 17. Bb3 {[%clk 0:01:33.6]} 17... Kf7 {[%clk 0:01:58]} 18. Na4
{[%clk 0:01:31.3]} 18... Qxd4+ {[%clk 0:01:57.2]} 19. Rxd4 {[%clk 0:01:31.1]}
19... Re8 {[%clk 0:01:55.3]} 20. Nc5 {[%clk 0:01:21.7]} 20... e5 {[%clk
0:01:54.6]} 21. Rd2 {[%clk 0:01:22]} 21... Bf5 {[%clk 0:01:50.3]} 22. Rf2 {[%clk
0:01:18.7]} 22... Rad8 {[%clk 0:01:36.1]} 23. h3 {[%clk 0:01:17.8]} 23... h5
{[%clk 0:01:36]} 24. Ref1 {[%clk 0:00:54.6]} 24... Re7 {[%clk 0:01:33.2]} 25.
Nd3 {[%clk 0:00:51.9]} 25... Kg7 {[%clk 0:01:31.7]} 26. Nb4 {[%clk 0:00:50.3]}
26... Rd6 {[%clk 0:01:25.9]} 27. Na6 {[%clk 0:00:46.9]} 27... Ne4 {[%clk
0:01:22.5]} 28. Re2 {[%clk 0:00:45.9]} 28... Ng3 {[%clk 0:01:18]} 29. Rfe1
{[%clk 0:00:46.1]} 29... Nxe2+ {[%clk 0:01:17.7]} 30. Rxe2 {[%clk 0:00:47]}
30... e4 {[%clk 0:01:16.8]} 31. Nc5 {[%clk 0:00:47.9]} 31... d4 {[%clk
0:01:16.8]} 32. g4 {[%clk 0:00:45.5]} 32... hxg4 {[%clk 0:01:17]} 33. hxg4
{[%clk 0:00:46.1]} 33... Bxg4 {[%clk 0:01:17.3]} 34. Rxe4 {[%clk 0:00:46.7]}
34... Rxe4 {[%clk 0:01:16.2]} 35. Nxe4 {[%clk 0:00:47.6]} 35... Rd8 {[%clk
0:01:11.3]} 36. Kf2 {[%clk 0:00:48.1]} 36... Re8 {[%clk 0:01:10.7]} 37. Nc5
{[%clk 0:00:44.7]} 37... Re3 {[%clk 0:01:05.4]} 38. a4 {[%clk 0:00:43.4]} 38...
Kf6 {[%clk 0:01:03]} 39. a5 {[%clk 0:00:43.2]} 39... g5 {[%clk 0:00:58.9]} 40.
Ba4 {[%clk 0:00:40.8]} 40... Re5 {[%clk 0:00:58]} 41. b4 {[%clk 0:00:40.2]}
41... Re2+ {[%clk 0:00:45.9]} 42. Kg3 {[%clk 0:00:39.7]} 42... Bf5 {[%clk
0:00:45.1]} 43. Bxc6 {[%clk 0:00:27.1]} 43... Rxc2 {[%clk 0:00:45.1]} 44. Bb5
{[%clk 0:00:27]} 44... d3 {[%clk 0:00:41.5]} 45. Kf3 {[%clk 0:00:17.4]} 45... d2
{[%clk 0:00:38.6]} 46. Be2 {[%clk 0:00:17.6]} 46... Rc3+ {[%clk 0:00:33.9]} 47.
Kf2 {[%clk 0:00:17.6]} 47... Bc2 {[%clk 0:00:29.9]} 48. Nd7+ {[%clk 0:00:15.6]}
48... Kf5 {[%clk 0:00:28.6]} 49. b5 {[%clk 0:00:08.9]} 49... d1=Q {[%clk
0:00:18.6]} 50. Bxd1 {[%clk 0:00:09.2]} 50... Bxd1 {[%clk 0:00:19.5]} 51. b6
{[%clk 0:00:09.7]} 51... axb6 {[%clk 0:00:20.1]} 52. axb6 {[%clk 0:00:10.1]}
52... Bf3 {[%clk 0:00:20]} 0-1

[Event "*** Titled Tuesday Blitz"]
[Site "Chess.com"]
[Date "2020.05.19"]
[Round "8"]
[White "AleksanderHnydiuk"]
[Black "djano"]
[Result "1/2-1/2"]
[WhiteElo "2573"]
[BlackElo "2459"]
[TimeControl "180+1"]
[EndTime "13:37:04 PDT"]
[Termination "Game drawn - insufficient material"]

1. Nf3 {[%clk 0:02:36.7]} 1... Nf6 {[%clk 0:02:58.5]} 2. c4 {[%clk 0:02:35.9]}
2... g6 {[%clk 0:02:58.1]} 3. g3 {[%clk 0:02:35.8]} 3... Bg7 {[%clk 0:02:58.2]}
4. Bg2 {[%clk 0:02:36.7]} 4... O-O {[%clk 0:02:58.6]} 5. d4 {[%clk 0:02:37.3]}
5... d6 {[%clk 0:02:57.1]} 6. Nc3 {[%clk 0:02:36.4]} 6... Nc6 {[%clk 0:02:54.9]}
7. O-O {[%clk 0:02:35.9]} 7... Rb8 {[%clk 0:02:55.3]} 8. Bf4 {[%clk 0:02:34.2]}
8... a6 {[%clk 0:02:53]} 9. Rc1 {[%clk 0:02:33.8]} 9... Bd7 {[%clk 0:02:52.8]}
10. Qd2 {[%clk 0:02:30.5]} 10... b5 {[%clk 0:02:49.1]} 11. Nd5 {[%clk
0:02:30.5]} 11... bxc4 {[%clk 0:02:44]} 12. Nxf6+ {[%clk 0:02:30.2]} 12... Bxf6
{[%clk 0:02:44.9]} 13. Rxc4 {[%clk 0:02:30.5]} 13... Na7 {[%clk 0:02:16.9]} 14.
Rfc1 {[%clk 0:02:28.2]} 14... c6 {[%clk 0:02:17]} 15. Bg5 {[%clk 0:02:13.1]}
15... Bg7 {[%clk 0:01:58.7]} 16. b3 {[%clk 0:02:05.6]} 16... Re8 {[%clk
0:01:56.5]} 17. Ra4 {[%clk 0:02:00.6]} 17... Qb6 {[%clk 0:01:51.2]} 18. Qa5
{[%clk 0:01:59.7]} 18... Nb5 {[%clk 0:01:40.5]} 19. Qxa6 {[%clk 0:01:50.1]}
19... Qxa6 {[%clk 0:01:04.1]} 20. Rxa6 {[%clk 0:01:51]} 20... Nxd4 {[%clk
0:00:47.4]} 21. Nxd4 {[%clk 0:01:50.7]} 21... Bxd4 {[%clk 0:00:48.3]} 22. Bxc6
{[%clk 0:01:46.9]} 22... Bxc6 {[%clk 0:00:48.6]} 23. Raxc6 {[%clk 0:01:46.8]}
23... Ra8 {[%clk 0:00:45.3]} 24. R1c2 {[%clk 0:01:46.8]} 24... Bc5 {[%clk
0:00:43]} 25. Rc7 {[%clk 0:01:34.2]} 25... f6 {[%clk 0:00:42.7]} 26. Bd2 {[%clk
0:01:33.3]} 26... Kf7 {[%clk 0:00:40]} 27. a4 {[%clk 0:01:32.2]} 27... Reb8
{[%clk 0:00:38.6]} 28. Rc3 {[%clk 0:01:27.6]} 28... Bb4 {[%clk 0:00:35.1]} 29.
Rd3 {[%clk 0:01:27.5]} 29... Bxd2 {[%clk 0:00:34.8]} 30. Rxd2 {[%clk 0:01:28.4]}
30... Rxb3 {[%clk 0:00:34.9]} 31. Rxd6 {[%clk 0:01:28.3]} 31... Rxa4 {[%clk
0:00:34.8]} 32. Rdd7 {[%clk 0:01:25.5]} 32... Re4 {[%clk 0:00:34.4]} 33. e3
{[%clk 0:01:23.4]} 33... g5 {[%clk 0:00:31.7]} 34. Kg2 {[%clk 0:01:20.9]} 34...
g4 {[%clk 0:00:29.8]} 35. h3 {[%clk 0:01:20.3]} 35... h5 {[%clk 0:00:29.6]} 36.
Rc8 {[%clk 0:01:17]} 36... Rb2 {[%clk 0:00:27.7]} 37. Rh8 {[%clk 0:01:14]} 37...
Rxe3 {[%clk 0:00:24.9]} 38. Rh7+ {[%clk 0:01:09.3]} 38... Kg6 {[%clk 0:00:24.5]}
39. Rdxe7 {[%clk 0:01:04.6]} 39... gxh3+ {[%clk 0:00:23.8]} 40. Kxh3 {[%clk
0:01:00.7]} 40... Rxe7 {[%clk 0:00:23.8]} 41. Rxe7 {[%clk 0:01:00.4]} 41... Rxf2
{[%clk 0:00:24.3]} 42. Re8 {[%clk 0:00:58.8]} 42... Ra2 {[%clk 0:00:23.7]} 43.
Rg8+ {[%clk 0:00:58.7]} 43... Kf5 {[%clk 0:00:23.8]} 44. Rh8 {[%clk 0:00:58.5]}
44... Kg6 {[%clk 0:00:23.1]} 45. Rg8+ {[%clk 0:00:58.5]} 45... Kh7 {[%clk
0:00:23.5]} 46. Rf8 {[%clk 0:00:58.3]} 46... Kg7 {[%clk 0:00:23.9]} 47. Rc8
{[%clk 0:00:58.6]} 47... Ra4 {[%clk 0:00:22.4]} 48. Rc5 {[%clk 0:00:57.2]} 48...
Kg6 {[%clk 0:00:22.4]} 49. Rb5 {[%clk 0:00:57.4]} 49... f5 {[%clk 0:00:22.5]}
50. Rb6+ {[%clk 0:00:57.2]} 50... Kg5 {[%clk 0:00:22.5]} 51. Rb8 {[%clk
0:00:57]} 51... Ra3 {[%clk 0:00:22.6]} 52. Rg8+ {[%clk 0:00:56.2]} 52... Kf6
{[%clk 0:00:22.7]} 53. Rf8+ {[%clk 0:00:56.3]} 53... Ke5 {[%clk 0:00:21.7]} 54.
Re8+ {[%clk 0:00:55.8]} 54... Kf6 {[%clk 0:00:21]} 55. Rf8+ {[%clk 0:00:55.7]}
55... Kg6 {[%clk 0:00:21.2]} 56. Rg8+ {[%clk 0:00:55.6]} 56... Kf7 {[%clk
0:00:20.4]} 57. Rg5 {[%clk 0:00:55.1]} 57... Kf6 {[%clk 0:00:20.8]} 58. Rxh5
{[%clk 0:00:54.9]} 58... f4 {[%clk 0:00:21.3]} 59. Kg4 {[%clk 0:00:46.4]} 59...
fxg3 {[%clk 0:00:18.3]} 60. Kh3 {[%clk 0:00:44.8]} 60... Kg6 {[%clk 0:00:16.7]}
61. Rb5 {[%clk 0:00:43.2]} 61... Kf6 {[%clk 0:00:14.5]} 62. Kg2 {[%clk
0:00:43.1]} 62... Ke6 {[%clk 0:00:14.6]} 63. Rh5 {[%clk 0:00:42.7]} 63... Kf6
{[%clk 0:00:14.8]} 64. Rh3 {[%clk 0:00:42.7]} 64... Kg5 {[%clk 0:00:15.2]} 65.
Rxg3+ {[%clk 0:00:42.9]} 65... Rxg3+ {[%clk 0:00:15.9]} 66. Kxg3 {[%clk
0:00:43.4]} 1/2-1/2

[Event "*** Titled Tuesday Blitz"]
[Site "Chess.com"]
[Date "2020.05.19"]
[Round "8"]
[White "GHANDEEVAM2003"]
[Black "bakki78"]
[Result "1-0"]
[WhiteElo "2912"]
[BlackElo "2756"]
[TimeControl "180+1"]
[EndTime "13:37:05 PDT"]
[Termination "GHANDEEVAM2003 won by resignation"]

1. e4 {[%clk 0:03:00.9]} 1... c5 {[%clk 0:02:59.2]} 2. Nf3 {[%clk 0:03:00.5]}
2... Nc6 {[%clk 0:02:59.3]} 3. d4 {[%clk 0:02:59.9]} 3... cxd4 {[%clk
0:02:59.5]} 4. Nxd4 {[%clk 0:03:00.8]} 4... Nf6 {[%clk 0:02:59.5]} 5. Nc3 {[%clk
0:03:01.1]} 5... d6 {[%clk 0:02:59.9]} 6. Bc4 {[%clk 0:02:59]} 6... Bd7 {[%clk
0:02:57.4]} 7. O-O {[%clk 0:02:58.3]} 7... e6 {[%clk 0:02:55.5]} 8. f4 {[%clk
0:02:56.5]} 8... Be7 {[%clk 0:02:55]} 9. Be3 {[%clk 0:02:52.8]} 9... O-O {[%clk
0:02:50.5]} 10. Qf3 {[%clk 0:02:49.4]} 10... Rc8 {[%clk 0:02:25.2]} 11. Bb3
{[%clk 0:02:43]} 11... Na5 {[%clk 0:02:09.3]} 12. e5 {[%clk 0:02:31]} 12... Ne8
{[%clk 0:02:06.2]} 13. Rad1 {[%clk 0:02:13.9]} 13... a6 {[%clk 0:01:53.5]} 14.
Qg3 {[%clk 0:01:58]} 14... g6 {[%clk 0:01:42.2]} 15. f5 {[%clk 0:01:49.8]} 15...
Nxb3 {[%clk 0:01:40.2]} 16. cxb3 {[%clk 0:01:45]} 16... exf5 {[%clk 0:01:38]}
17. Nxf5 {[%clk 0:01:36]} 17... Bxf5 {[%clk 0:01:35.2]} 18. Rxf5 {[%clk
0:01:36.9]} 18... Bh4 {[%clk 0:01:18.6]} 19. Qg4 {[%clk 0:01:25.2]} 19... Qd7
{[%clk 0:01:14.6]} 20. Rf4 {[%clk 0:01:01.8]} 20... Qxg4 {[%clk 0:01:09.7]} 21.
Rxg4 {[%clk 0:01:02.7]} 21... Be7 {[%clk 0:01:01.7]} 22. Nd5 {[%clk 0:00:56.1]}
22... Bd8 {[%clk 0:01:01.6]} 23. Bh6 {[%clk 0:00:44.1]} 23... dxe5 {[%clk
0:00:57.1]} 24. Bxf8 {[%clk 0:00:43.9]} 24... Kxf8 {[%clk 0:00:57.6]} 25. Rc4
{[%clk 0:00:38.9]} 25... Rb8 {[%clk 0:00:53.3]} 26. Re4 {[%clk 0:00:38.6]} 26...
f6 {[%clk 0:00:52.5]} 27. Rf1 {[%clk 0:00:39.1]} 27... Kg7 {[%clk 0:00:51.5]}
28. g4 {[%clk 0:00:39.6]} 28... h6 {[%clk 0:00:47.9]} 29. h4 {[%clk 0:00:37.9]}
29... Nd6 {[%clk 0:00:46]} 30. Re2 {[%clk 0:00:37.3]} 30... Rc8 {[%clk
0:00:40.8]} 31. Kg2 {[%clk 0:00:30.9]} 31... Rc5 {[%clk 0:00:33.4]} 32. Rd1
{[%clk 0:00:31.2]} 32... Nf7 {[%clk 0:00:32.2]} 33. Nc3 {[%clk 0:00:27.9]} 33...
Rc7 {[%clk 0:00:30.1]} 34. Red2 {[%clk 0:00:26.3]} 34... Rc8 {[%clk 0:00:24.8]}
35. Rd7 {[%clk 0:00:23.6]} 35... b5 {[%clk 0:00:25.2]} 36. Rb7 {[%clk
0:00:17.7]} 36... b4 {[%clk 0:00:21.3]} 37. Ne4 {[%clk 0:00:18.1]} 37... Rc2+
{[%clk 0:00:21.1]} 38. Kf3 {[%clk 0:00:17.8]} 38... Rc7 {[%clk 0:00:19.1]} 39.
Rxc7 {[%clk 0:00:17.1]} 39... Bxc7 {[%clk 0:00:19.6]} 40. Rd7 {[%clk 0:00:17.7]}
40... Bb8 {[%clk 0:00:19.7]} 41. Nc5 {[%clk 0:00:17.9]} 41... f5 {[%clk
0:00:19.8]} 42. gxf5 {[%clk 0:00:09.6]} 42... gxf5 {[%clk 0:00:19.4]} 43. Nxa6
{[%clk 0:00:10.5]} 43... Bd6 {[%clk 0:00:16.6]} 44. Nc7 {[%clk 0:00:10.7]} 44...
e4+ {[%clk 0:00:12.9]} 45. Ke2 {[%clk 0:00:10.1]} 45... Kg6 {[%clk 0:00:12.7]}
46. Ne8 {[%clk 0:00:08.1]} 46... Bf8 {[%clk 0:00:09.7]} 47. h5+ {[%clk 0:00:08]}
47... Kxh5 {[%clk 0:00:08]} 48. Rxf7 {[%clk 0:00:08.9]} 1-0

[Event "*** Titled Tuesday Blitz"]
[Site "Chess.com"]
[Date "2020.05.19"]
[Round "8"]
[White "hellokostya"]
[Black "Chessialist"]
[Result "0-1"]
[WhiteElo "2410"]
[BlackElo "2562"]
[TimeControl "180+1"]
[EndTime "13:37:05 PDT"]
[Termination "Chessialist won by resignation"]

1. d4 {[%clk 0:02:59.6]} 1... Nf6 {[%clk 0:02:59.4]} 2. c4 {[%clk 0:02:58.1]}
2... e6 {[%clk 0:02:59.3]} 3. Nf3 {[%clk 0:02:54.2]} 3... d5 {[%clk 0:02:58.8]}
4. Nc3 {[%clk 0:02:53.8]} 4... Be7 {[%clk 0:02:59.1]} 5. Bf4 {[%clk 0:02:53]}
5... c6 {[%clk 0:02:57.7]} 6. e3 {[%clk 0:02:51.6]} 6... Nbd7 {[%clk 0:02:58]}
7. h3 {[%clk 0:02:42]} 7... O-O {[%clk 0:02:56]} 8. Bd3 {[%clk 0:02:41.4]} 8...
dxc4 {[%clk 0:02:53.5]} 9. Bxc4 {[%clk 0:02:41.2]} 9... b5 {[%clk 0:02:54]} 10.
Bd3 {[%clk 0:02:38.5]} 10... a6 {[%clk 0:02:54.2]} 11. O-O {[%clk 0:02:37.6]}
11... c5 {[%clk 0:02:52.7]} 12. Qe2 {[%clk 0:02:02.9]} 12... Bb7 {[%clk
0:02:50.9]} 13. Bg3 {[%clk 0:01:37]} 13... Qb6 {[%clk 0:02:47.1]} 14. Rad1
{[%clk 0:01:32.7]} 14... Rac8 {[%clk 0:02:45.9]} 15. Bb1 {[%clk 0:01:28.4]}
15... Rfd8 {[%clk 0:02:43.8]} 16. a3 {[%clk 0:01:25.3]} 16... cxd4 {[%clk
0:02:36.3]} 17. Nxd4 {[%clk 0:01:23.9]} 17... Nc5 {[%clk 0:02:33.3]} 18. f3
{[%clk 0:01:10]} 18... Nd5 {[%clk 0:02:21.2]} 19. Be1 {[%clk 0:00:54]} 19...
Nxc3 {[%clk 0:02:14.7]} 20. Bxc3 {[%clk 0:00:53.6]} 20... Na4 {[%clk 0:02:15.2]}
21. Bb4 {[%clk 0:00:49.7]} 21... Bf6 {[%clk 0:02:07.2]} 22. Kh1 {[%clk 0:00:47]}
22... g6 {[%clk 0:02:01.7]} 23. Qf2 {[%clk 0:00:44.1]} 23... Bg7 {[%clk
0:01:54.9]} 24. Ba2 {[%clk 0:00:42.2]} 24... Bd5 {[%clk 0:01:51.5]} 25. Bxd5
{[%clk 0:00:41.3]} 25... Rxd5 {[%clk 0:01:52.4]} 26. b3 {[%clk 0:00:38]} 26...
Nc5 {[%clk 0:01:43.9]} 27. Rc1 {[%clk 0:00:29.6]} 27... Rcd8 {[%clk 0:01:41.6]}
28. Bxc5 {[%clk 0:00:25.5]} 28... Rxc5 {[%clk 0:01:42.5]} 29. b4 {[%clk
0:00:19.6]} 29... Rxc1 {[%clk 0:01:42]} 30. Rxc1 {[%clk 0:00:20.5]} 30... Bxd4
{[%clk 0:01:30]} 31. exd4 {[%clk 0:00:21.4]} 31... Rxd4 {[%clk 0:01:25.9]} 32.
Qb2 {[%clk 0:00:20]} 32... Qd6 {[%clk 0:01:19.2]} 33. Qc3 {[%clk 0:00:19.7]}
33... e5 {[%clk 0:01:08.9]} 34. Re1 {[%clk 0:00:19.5]} 34... Kg7 {[%clk
0:01:07.7]} 35. Rc1 {[%clk 0:00:18.3]} 35... h5 {[%clk 0:01:07.4]} 36. Re1
{[%clk 0:00:17.3]} 36... h4 {[%clk 0:01:07]} 37. Rc1 {[%clk 0:00:17.3]} 37...
Rd3 {[%clk 0:00:56.4]} 38. Qe1 {[%clk 0:00:15.1]} 38... g5 {[%clk 0:00:45.2]}
39. Qe4 {[%clk 0:00:10.2]} 39... Rd1+ {[%clk 0:00:45.2]} 40. Rxd1 {[%clk
0:00:09.9]} 40... Qxd1+ {[%clk 0:00:46.1]} 41. Kh2 {[%clk 0:00:10.4]} 41... Qd4
{[%clk 0:00:46]} 42. Qb7 {[%clk 0:00:09.3]} 42... Qf4+ {[%clk 0:00:43.8]} 43.
Kh1 {[%clk 0:00:09.5]} 43... Qc1+ {[%clk 0:00:44.5]} 44. Kh2 {[%clk 0:00:09.8]}
44... Qxa3 {[%clk 0:00:45.3]} 45. Qe4 {[%clk 0:00:09.8]} 45... Qc3 {[%clk
0:00:40]} 46. Qf5 {[%clk 0:00:09.7]} 46... Qe3 {[%clk 0:00:39.7]} 47. Qd7 {[%clk
0:00:09.2]} 47... Qf4+ {[%clk 0:00:39.2]} 48. Kh1 {[%clk 0:00:09.4]} 48... Qxb4
{[%clk 0:00:39.9]} 49. Qf5 {[%clk 0:00:09.7]} 49... Qf4 {[%clk 0:00:38.1]} 50.
Qc8 {[%clk 0:00:08.7]} 50... b4 {[%clk 0:00:35.9]} 51. Qxa6 {[%clk 0:00:08.5]}
51... b3 {[%clk 0:00:36.3]} 52. Qb7 {[%clk 0:00:08.6]} 52... Qc1+ {[%clk
0:00:34.9]} 53. Kh2 {[%clk 0:00:09]} 53... b2 {[%clk 0:00:35.5]} 54. Qb8 {[%clk
0:00:09.2]} 54... b1=Q {[%clk 0:00:24.9]} 55. Qxe5+ {[%clk 0:00:09.1]} 55... Kh7
{[%clk 0:00:25.5]} 0-1